fUSD/lending_fUSD_20240104
["ID","MTS","AMOUNT","RATE_DAILY","PERIOD"]
[310138411,1704382259176,-500.0,0.0003315,2]
[310138412,1704382259185,-500.0,0.0003315,2]
[310138413,1704382259196,-500.0,0.0003315,2]
[310138414,1704382259205,-1641.84,0.0003315,2]
[310138415,1704382259215,-4055.91,0.0003315,2]
[310138416,1704382259224,-500.0,0.0003315,2]
[310138417,1704382259233,-500.0,0.0003315,2]
[310138418,1704382259243,-502.5052351,0.0003315,2]
[310138419,1704382259253,-500.0,0.0003315,2]
[310138420,1704382259263,-467.04099912,0.0003315,2]
[310138421,1704382259273,-668.58,0.0003315,2]
[310138422,1704382259282,-500.0,0.0003315,2]
[310138423,1704382259292,-635.32773782,0.0003315,2]
[310138424,1704382259301,-892.93,0.0003315,2]
[310138425,1704382259311,-3237.39,0.0003315,2]
[310138426,1704382259320,-500.0,0.0003315,2]
[310138427,1704382259329,-2859.43,0.0003315,2]
[310138428,1704382259339,-500.0,0.0003315,2]
[310138429,1704382259348,-500.0,0.0003315,2]
[310138430,1704382259358,-500.0,0.0003315,2]
[310138431,1704382259367,-500.0,0.0003315,2]
[310138432,1704382259377,-500.0,0.0003315,2]
[310138433,1704382259386,-2106.83,0.0003315,2]
[310138434,1704382259396,-2012.37,0.0003315,2]
[310138435,1704382259411,-500.0,0.0003315,2]
[310138436,1704382259421,-582.46,0.0003315,2]
[310138437,1704382259431,-500.0,0.0003315,2]
[310138438,1704382259443,-517.99378255,0.0003315,2]
[310138439,1704382259453,-8847.8,0.0003315,2]
[310138440,1704382259462,-797.8,0.0003315,2]
[310138441,1704382259471,-500.0,0.0003315,2]
[310138442,1704382259480,-1629.73,0.0003315,2]
[310138443,1704382259490,-500.0,0.0003315,2]
[310138444,1704382259500,-732.92,0.0003315,2]
[310138445,1704382259510,-1031.75,0.0003315,2]
[310138446,1704382259519,-500.0,0.0003315,2]
[310138447,1704382259530,-819.74,0.0003315,2]
[310138448,1704382259539,-1632.82,0.0003315,2]
[310138449,1704382259550,-500.0,0.0003315,2]
[310138450,1704382259559,-1000.0,0.0003315,2]
[310138451,1704382259569,-500.0,0.0003315,2]
[310138452,1704382259579,-1373.53,0.0003315,2]
[310138453,1704382259588,-1158.83,0.0003315,2]
[310138454,1704382259598,-2495.12,0.0003315,2]
[310138455,1704382259608,-60560.52,0.0003315,2]
[310138456,1704382259617,-500.0,0.0003315,2]
[310138457,1704382259627,-500.0,0.0003315,2]
[310138458,1704382259637,-802.36,0.0003315,2]
[310138459,1704382259647,-500.0,0.0003315,2]
[310138460,1704382259656,-1226.79,0.0003315,2]
[310138461,1704382259669,-758.9,0.0003315,2]
[310138462,1704382259679,-500.0,0.0003315,2]
[310138463,1704382259688,-11320.09,0.0003315,2]
[310138464,1704382259698,-500.0,0.0003315,2]
[310138465,1704382259707,-923.61,0.0003315,2]
[310138466,1704382259717,-460.52104553,0.0003315,2]
[310138467,1704382259726,-957.74,0.0003315,2]
[310138468,1704382259735,-500.0,0.0003315,2]
[310138469,1704382259745,-2795.79,0.0003315,2]
[310138470,1704382259755,-1289.44,0.0003315,2]
[310138471,1704382259765,-559.57,0.0003315,2]
[310138472,1704382259776,-500.0,0.0003315,2]
[310138473,1704382259785,-500.0,0.0003315,2]
[310138474,1704382259794,-4861.36,0.0003315,2]
[310138475,1704382259803,-500.0,0.0003315,2]
[310138476,1704382259813,-951.95,0.0003315,2]
[310138477,1704382259823,-4423.27,0.0003315,2]
[310138478,1704382259833,-500.0,0.0003315,2]
[310138479,1704382259842,-5411.95,0.0003315,2]
[310138480,1704382259852,-500.0,0.0003315,2]
[310138481,1704382259861,-799.74,0.0003315,2]
[310138482,1704382259871,-510.36,0.0003315,2]
[310138483,1704382259880,-500.0,0.0003315,2]
[310138484,1704382259890,-500.0,0.0003315,2]
[310138485,1704382259899,-500.0,0.0003315,2]
[310138486,1704382259910,-4623.25,0.0003315,2]
[310138487,1704382259919,-500.0,0.0003315,2]
[310138488,1704382259929,-1238.7,0.0003315,2]
[310138489,1704382259937,-713.76,0.0003315,2]
[310138490,1704382259947,-10650.37,0.0003315,2]
[310138491,1704382259956,-769.96,0.0003315,2]
[310138492,1704382259966,-500.0,0.0003315,2]
[310138493,1704382259975,-500.0,0.0003315,2]
[310138494,1704382259984,-533.03329453,0.0003315,2]
[310138495,1704382259993,-500.0,0.0003315,2]
[310138496,1704382260002,-500.0,0.0003315,2]
[310138497,1704382260012,-881.17,0.0003315,2]
[310138498,1704382260021,-500.0,0.0003315,2]
[310138499,1704382260030,-2025.74,0.0003315,2]
[310138500,1704382260040,-1324.9,0.0003315,2]
[310138501,1704382260049,-500.0,0.0003315,2]
[310138502,1704382260059,-500.0,0.0003315,2]
[310138503,1704382260068,-500.0,0.0003315,2]
[310138504,1704382260078,-500.0,0.0003315,2]
[310138505,1704382260088,-500.0,0.0003315,2]
[310138506,1704382260097,-500.0,0.0003315,2]
[310138507,1704382260106,-500.0,0.0003315,2]
[310138508,1704382260116,-649.02,0.0003315,2]
[310138509,1704382260125,-500.0,0.0003315,2]
[310138510,1704382260135,-1824.77,0.0003315,2]
[310138511,1704382260144,-2771.51,0.0003315,2]
[310138512,1704382260154,-500.0,0.0003315,2]
[310138513,1704382260165,-9690.93,0.0003315,2]
[310138514,1704382260174,-500.0,0.0003315,2]
[310138515,1704382260184,-1120.27,0.0003315,2]
[310138516,1704382260194,-2989.05,0.0003315,2]
[310138517,1704382260203,-500.0,0.0003315,2]
[310138518,1704382260212,-4554.37,0.0003315,2]
[310138519,1704382260222,-631.33,0.0003315,2]
[310138520,1704382260231,-1696.98,0.0003315,2]
[310138521,1704382260240,-500.0,0.0003315,2]
[310138522,1704382260250,-500.0,0.0003315,2]
[310138523,1704382260259,-500.0,0.0003315,2]
[310138524,1704382260269,-4285.83,0.0003315,2]
[310138525,1704382260278,-500.0,0.0003315,2]
[310138526,1704382260289,-2319.2,0.0003315,2]
[310138527,1704382260302,-1751.2,0.0003315,2]
[310138528,1704382260312,-500.0,0.0003315,2]
[310138529,1704382260322,-500.0,0.0003315,2]
[310138530,1704382260332,-642.21,0.0003315,2]
[310138531,1704382260346,-2792.13,0.0003315,2]
[310138532,1704382260355,-1270.78,0.0003315,2]
[310138533,1704382260366,-500.0,0.0003315,2]
[310138534,1704382260375,-831.45,0.0003315,2]
[310138535,1704382260385,-500.0,0.0003315,2]
[310138536,1704382260394,-500.0,0.0003315,2]
[310138537,1704382260404,-500.0,0.0003315,2]
[310138538,1704382260415,-752.61,0.0003315,2]
[310138539,1704382260425,-1407.97,0.0003315,2]
[310138540,1704382260434,-2145.12,0.0003315,2]
[310138541,1704382260444,-1149.01,0.0003315,2]
[310138542,1704382260453,-581.8,0.0003315,2]
[310138543,1704382260463,-1969.6,0.0003315,2]
[310138544,1704382260471,-593.81,0.0003315,2]
[310138545,1704382260481,-7145.09,0.0003315,2]
[310138546,1704382260490,-1597.33,0.0003315,2]
[310138547,1704382260499,-955.93,0.0003315,2]
[310138548,1704382260508,-500.0,0.0003315,2]
[310138549,1704382260517,-3064.87,0.0003315,2]
[310138550,1704382260527,-2115.06,0.0003315,2]
[310138551,1704382260536,-570.95,0.0003315,2]
[310138552,1704382260546,-500.0,0.0003315,2]
[310138553,1704382260556,-500.0,0.0003315,2]
[310138554,1704382260565,-605.29,0.0003315,2]
[310138555,1704382260575,-1573.59,0.0003315,2]
[310138556,1704382260584,-660.75,0.0003315,2]
[310138557,1704382260594,-619.4,0.0003315,2]
[310138558,1704382260605,-854.83,0.0003315,2]
[310138559,1704382260614,-500.0,0.0003315,2]
[310138560,1704382260624,-2280.04,0.0003315,2]
[310138561,1704382260634,-500.0,0.0003315,2]
[310138562,1704382260644,-500.0,0.0003315,2]
[310138563,1704382260654,-925.71,0.0003315,2]
[310138564,1704382260666,-879.03,0.0003315,2]
[310138565,1704382260676,-2256.52,0.0003315,2]
[310138566,1704382260686,-500.0,0.0003315,2]
[310138567,1704382260696,-500.0,0.0003315,2]
[310138568,1704382260705,-500.0,0.0003315,2]
[310138569,1704382260715,-911.6,0.0003315,2]
[310138570,1704382260726,-2355.5,0.0003315,2]
[310138571,1704382260736,-500.0,0.0003315,2]
[310138572,1704382260746,-2506.82,0.0003315,2]
[310138573,1704382260913,-500.0,0.0003315,2]
[310138574,1704382260924,-500.0,0.0003315,2]
[310138575,1704382260934,-883.18,0.0003315,2]
[310138576,1704382260944,-1691.6,0.0003315,2]
[310138577,1704382260953,-2376.12,0.0003315,2]
[310138578,1704382260963,-1150.28,0.0003315,2]
[310138579,1704382260972,-500.0,0.0003315,2]
[310138580,1704382260982,-3241.26,0.0003315,2]
[310138581,1704382260991,-1467.13,0.0003315,2]
[310138582,1704382261002,-500.0,0.0003315,2]
[310138583,1704382261011,-630.43,0.0003315,2]
[310138584,1704382261021,-1767.24,0.0003315,2]
[310138585,1704382261031,-607.5,0.0003315,2]
[310138586,1704382261040,-892.51,0.0003315,2]
[310138587,1704382261049,-887.9,0.0003315,2]
[310138588,1704382261059,-564.23,0.0003315,2]
[310138589,1704382261068,-637.81,0.0003315,2]
[310138590,1704382261078,-4440.92,0.0003315,2]
[310138591,1704382261087,-1742.24,0.0003315,2]
[310138592,1704382261097,-500.0,0.0003315,2]
[310138593,1704382261106,-500.0,0.0003315,2]
[310138594,1704382261116,-500.0,0.0003315,2]
[310138595,1704382261126,-500.0,0.0003315,2]
[310138596,1704382261136,-993.64,0.0003315,2]
[310138597,1704382261146,-1531.57,0.0003315,2]
[310138598,1704382261155,-920.1,0.0003315,2]
[310138599,1704382261166,-500.0,0.0003315,2]
[310138600,1704382261175,-968.57,0.0003315,2]
[310138601,1704382261185,-5295.62,0.0003315,2]
[310138602,1704382261194,-1251.27,0.0003315,2]
[310138603,1704382261204,-500.0,0.0003315,2]
[310138604,1704382261213,-2780.74,0.0003315,2]
[310138605,1704382261223,-516.04,0.0003315,2]
[310138606,1704382261232,-500.0,0.0003315,2]
[310138607,1704382261242,-2167.09,0.0003315,2]
[310138608,1704382261252,-976.16,0.0003315,2]
[310138609,1704382261261,-853.19,0.0003315,2]
[310138610,1704382261271,-1705.51,0.0003315,2]
[310138611,1704382261280,-2143.03,0.0003315,2]
[310138612,1704382261289,-769.13,0.0003315,2]
[310138613,1704382261299,-548.03,0.0003315,2]
[310138614,1704382261309,-1295.8,0.0003315,2]
[310138615,1704382261318,-500.0,0.0003315,2]
[310138616,1704382261327,-500.0,0.0003315,2]
[310138617,1704382261337,-703.55,0.0003315,2]
[310138618,1704382261346,-2940.4,0.0003315,2]
[310138619,1704382261356,-500.0,0.0003315,2]
[310138620,1704382261365,-1231.36,0.0003315,2]
[310138621,1704382261375,-564.52474441,0.0003315,2]
[310138622,1704382261385,-2740.33,0.0003315,2]
[310138623,1704382261395,-500.0,0.0003315,2]
[310138624,1704382261404,-500.0,0.0003315,2]
[310138625,1704382261414,-647.47,0.0003315,2]
[310138626,1704382261424,-1044.81,0.0003315,2]
[310138627,1704382261433,-710.61,0.0003315,2]
[310138628,1704382261443,-500.0,0.0003315,2]
[310138629,1704382261452,-500.0,0.0003315,2]
[310138630,1704382261462,-1181.34,0.0003315,2]
[310138631,1704382261472,-1762.56,0.0003315,2]
[310138632,1704382261481,-500.0,0.0003315,2]
[310138633,1704382261490,-3086.01,0.0003315,2]
[310138634,1704382261500,-500.0,0.0003315,2]
[310138635,1704382261510,-500.0,0.0003315,2]
[310138636,1704382261519,-678.31,0.0003315,2]
[310138637,1704382261529,-646.85,0.0003315,2]
[310138638,1704382261539,-500.0,0.0003315,2]
[310138639,1704382261548,-500.0,0.0003315,2]
[310138640,1704382261558,-500.0,0.0003315,2]
[310138641,1704382261568,-692.13,0.0003315,2]
[310138642,1704382261577,-2873.65,0.0003315,2]
[310138643,1704382261587,-500.0,0.0003315,2]
[310138644,1704382261596,-3175.04,0.0003315,2]
[310138645,1704382261606,-835.84,0.0003315,2]
[310138646,1704382261616,-500.0,0.0003315,2]
[310138647,1704382261625,-1280.95,0.0003315,2]
[310138648,1704382261635,-500.0,0.0003315,2]
[310138649,1704382261644,-500.0,0.0003315,2]
[310138650,1704382261654,-1197.62,0.0003315,2]
[310138651,1704382261665,-1125.64,0.0003315,2]
[310138652,1704382261674,-756.46,0.0003315,2]
[310138653,1704382261684,-500.0,0.0003315,2]
[310138654,1704382261694,-3069.04,0.0003315,2]
[310138655,1704382261703,-1454.25,0.0003315,2]
[310138656,1704382261713,-620.9,0.0003315,2]
[310138657,1704382261722,-500.0,0.0003315,2]
[310138658,1704382261732,-500.0,0.0003315,2]
[310138659,1704382261742,-500.0,0.0003315,2]
[310138660,1704382261751,-500.0,0.0003315,2]
[310138661,1704382261761,-736.99,0.0003315,2]
[310138662,1704382261771,-500.0,0.0003315,2]
[310138663,1704382261780,-186.34765653,0.0003315,2]
[310138664,1704382261789,-1968.37,0.0003315,2]
[310138665,1704382261799,-4076.97,0.0003315,2]
[310138666,1704382261809,-500.0,0.0003315,2]
[310138667,1704382261818,-500.0,0.0003315,2]
[310138668,1704382261828,-887.26,0.0003315,2]
[310138669,1704382261837,-500.0,0.0003315,2]
[310138670,1704382261846,-4220.15,0.0003315,2]
[310138671,1704382261855,-737.06,0.0003315,2]
[310138672,1704382261864,-1000.0,0.000332,2]
[310138673,1704382261874,-207.0,0.0003321,2]
[310138674,1704382261883,-178.9543775,0.00033324,2]
[310138675,1704382261893,-2939.1747,0.00033324,2]
[310138676,1704382261903,-1656.8681,0.00033324,2]
[310138677,1704382261914,-181.45,0.00033364,2]
[310138678,1704382261923,-216.0,0.00033382,16]
[310138679,1704382261933,-1459.056941,0.000334,2]
[310138680,1704382261951,-548901.3895832,0.000334,2]
[310138681,1704382261973,-372.67401213,0.00033422,4]
[310138682,1704382261995,-1655.53628763,0.00033422,4]
[310138683,1704382262016,-553.7,0.00033422,2]
[310138684,1704382262034,-553.7,0.00033423,2]
[310138685,1704382262054,-545.30744081,0.00033423,2]
[310138686,1704382262074,-151.0,0.00033423,7]
[310138687,1704382262091,-500.0,0.00033424,2]
[310138688,1704382262110,-500.0,0.00033424,2]
[310138689,1704382262128,-500.0,0.00033424,2]
[310138690,1704382262149,-500.0,0.00033424,2]
[310138691,1704382262170,-500.0,0.00033424,2]
[310138692,1704382262183,-500.0,0.00033424,2]
[310138693,1704382262201,-500.0,0.00033424,2]
[310138694,1704382262219,-500.0,0.00033424,2]
[310138695,1704382262234,-500.0,0.00033424,2]
[310138696,1704382262249,-500.0,0.00033424,2]
[310138697,1704382262265,-500.0,0.00033424,2]
[310138698,1704382262280,-500.0,0.00033424,2]
[310138699,1704382262298,-500.0,0.00033424,2]
[310138700,1704382262313,-500.0,0.00033424,2]
[310138701,1704382262331,-725.45,0.00033424,2]
[310138702,1704382262347,-500.0,0.00033424,2]
[310138703,1704382262363,-772.81,0.00033424,2]
[310138704,1704382262381,-617.61,0.00033424,2]
[310138705,1704382262397,-812.86,0.00033424,2]
[310138706,1704382262412,-500.0,0.00033424,2]
[310138707,1704382262428,-500.0,0.00033424,2]
[310138708,1704382262443,-500.0,0.00033424,2]
[310138709,1704382262458,-647.04,0.00033424,2]
[310138710,1704382262473,-663.27,0.00033424,2]
[310138711,1704382262488,-986.85,0.00033424,2]
[310138712,1704382262503,-500.0,0.00033424,2]
[310138713,1704382262517,-500.0,0.00033424,2]
[310138714,1704382262532,-665.86,0.00033424,2]
[310138715,1704382262547,-500.0,0.00033424,2]
[310138716,1704382262566,-773.17,0.00033424,2]
[310138717,1704382262581,-500.0,0.00033424,2]
[310138718,1704382262597,-619.33,0.00033424,2]
[310138719,1704382262612,-500.0,0.00033424,2]
[310138720,1704382262627,-598.96,0.00033424,2]
[310138721,1704382262642,-500.0,0.00033424,2]
[310138722,1704382262657,-500.0,0.00033424,2]
[310138723,1704382262673,-500.0,0.00033424,2]
[310138724,1704382262688,-500.0,0.00033424,2]
[310138725,1704382262702,-500.0,0.00033424,2]
[310138726,1704382262717,-500.0,0.00033424,2]
[310138727,1704382262732,-1038.81,0.00033424,2]
[310138728,1704382262747,-500.0,0.00033424,2]
[310138729,1704382262763,-500.0,0.00033424,2]
[310138730,1704382262778,-500.0,0.00033424,2]
[310138731,1704382262792,-854.92,0.00033424,2]
[310138732,1704382262807,-500.0,0.00033424,2]
[310138733,1704382262823,-196.27237799,0.00033424,2]
[310138734,1704382262838,-1260.91,0.00033424,2]
[310138735,1704382262853,-500.0,0.00033424,2]
[310138736,1704382262869,-1003.59,0.00033424,2]
[310138737,1704382262884,-500.0,0.00033424,2]
[310138738,1704382262899,-500.0,0.00033424,2]
[310138739,1704382262916,-1673.23,0.00033424,2]
[310138740,1704382262932,-864.12,0.00033424,2]
[310138741,1704382262948,-500.0,0.00033424,2]
[310138742,1704382262963,-500.0,0.00033424,2]
[310138743,1704382262978,-500.0,0.00033424,2]
[310138744,1704382262993,-500.0,0.00033424,2]
[310138745,1704382263009,-1051.55,0.00033424,2]
[310138746,1704382263025,-883.08,0.00033424,2]
[310138747,1704382263040,-500.0,0.00033424,2]
[310138748,1704382263055,-500.0,0.00033424,2]
[310138749,1704382263071,-574.16,0.00033424,2]
[310138750,1704382263088,-380.86675988,0.00033424,2]
[310138751,1704382263103,-500.0,0.00033424,2]
[310138752,1704382263121,-500.0,0.00033424,2]
[310138753,1704382263137,-746.69,0.00033424,2]
[310138754,1704382263154,-617.62,0.00033424,2]
[310138755,1704382263173,-500.0,0.00033424,2]
[310138756,1704382263191,-500.0,0.00033424,2]
[310138757,1704382263207,-542.04,0.00033424,2]
[310138758,1704382263223,-500.0,0.00033424,2]
[310138759,1704382263239,-500.0,0.00033424,2]
[310138760,1704382263255,-500.0,0.00033424,2]
[310138761,1704382263271,-500.0,0.00033424,2]
[310138762,1704382263287,-979.72,0.00033424,2]
[310138763,1704382263302,-623.57,0.00033424,2]
[310138764,1704382263317,-500.0,0.00033424,2]
[310138765,1704382263333,-500.0,0.00033424,2]
[310138766,1704382263349,-1373.36,0.00033424,2]
[310138767,1704382263364,-749.65,0.00033424,2]
[310138768,1704382263379,-791.37,0.00033424,2]
[310138769,1704382263393,-749.29,0.00033424,2]
[310138770,1704382263408,-1152.47,0.00033424,2]
[310138771,1704382263425,-500.0,0.00033424,2]
[310138772,1704382263440,-1052.59,0.00033424,2]
[310138773,1704382263455,-500.0,0.00033424,2]
[310138774,1704382263469,-610.85,0.00033424,2]
[310138775,1704382263484,-500.0,0.00033424,5]
[310138776,1704382263499,-500.0,0.00033424,2]
[310138777,1704382263513,-500.0,0.00033424,2]
[310138778,1704382263528,-500.0,0.00033424,2]
[310138779,1704382263543,-500.0,0.00033424,2]
[310138780,1704382263555,-500.0,0.00033424,2]
[310138781,1704382263565,-500.0,0.00033424,2]
[310138782,1704382263574,-500.0,0.00033424,2]
[310138783,1704382263584,-500.0,0.00033424,2]
[310138784,1704382263594,-929.72,0.00033424,2]
[310138785,1704382263605,-500.0,0.00033424,2]
[310138786,1704382263615,-883.66,0.00033424,2]
[310138787,1704382263908,-965.13,0.00033424,2]
[310138788,1704382263946,-994.63,0.00033424,2]
[310138789,1704382263964,-500.0,0.00033424,2]
[310138790,1704382263974,-500.0,0.00033424,2]
[310138791,1704382263984,-500.0,0.00033424,2]
[310138792,1704382263993,-500.0,0.00033424,2]
[310138793,1704382264003,-500.0,0.00033424,2]
[310138794,1704382264013,-500.0,0.00033424,2]
[310138795,1704382264022,-500.0,0.00033424,2]
[310138796,1704382264032,-500.0,0.00033424,2]
[310138797,1704382264042,-628.5,0.00033424,2]
[310138798,1704382264052,-500.0,0.00033424,2]
[310138799,1704382264062,-500.0,0.00033424,2]
[310138800,1704382264071,-1726.76,0.00033424,2]
[310138801,1704382264082,-592.9,0.00033424,2]
[310138802,1704382264091,-687.49,0.00033424,2]
[310138803,1704382264100,-1527.49,0.00033424,2]
[310138804,1704382264110,-284.36012896,0.00033424,2]
[310138805,1704382264119,-1133.39,0.00033424,2]
[310138806,1704382264129,-500.0,0.00033424,2]
[310138807,1704382264138,-554.52,0.00033424,2]
[310138808,1704382264148,-875.83,0.00033424,2]
[310138809,1704382264157,-500.0,0.00033424,2]
[310138810,1704382264168,-500.0,0.00033424,2]
[310138811,1704382264177,-500.0,0.00033424,2]
[310138812,1704382264186,-569.21,0.00033424,2]
[310138813,1704382264195,-1481.3,0.00033424,2]
[310138814,1704382264205,-500.0,0.00033424,2]
[310138815,1704382264214,-500.0,0.00033424,2]
[310138816,1704382264224,-500.0,0.00033424,2]
[310138817,1704382264234,-500.0,0.00033424,2]
[310138818,1704382264243,-500.0,0.00033424,2]
[310138819,1704382264253,-500.0,0.00033424,2]
[310138820,1704382264262,-519.38024926,0.00033424,2]
[310138821,1704382264271,-500.0,0.00033424,2]
[310138822,1704382264281,-537.95,0.00033424,2]
[310138823,1704382264292,-500.0,0.00033424,2]
[310138824,1704382264303,-500.0,0.00033424,2]
[310138825,1704382264313,-500.0,0.00033424,2]
[310138826,1704382264322,-500.0,0.00033424,2]
[310138827,1704382264332,-697.47,0.00033424,2]
[310138828,1704382264342,-1165.76,0.00033424,2]
[310138829,1704382264351,-500.0,0.00033424,2]
[310138830,1704382264361,-500.0,0.00033424,2]
[310138831,1704382264372,-647.93,0.00033424,2]
[310138832,1704382264381,-500.0,0.00033424,2]
[310138833,1704382264391,-500.0,0.00033424,2]
[310138834,1704382264400,-500.0,0.00033424,2]
[310138835,1704382264410,-500.0,0.00033424,2]
[310138836,1704382264421,-500.0,0.00033424,2]
[310138837,1704382264430,-500.0,0.00033424,2]
[310138838,1704382264439,-500.0,0.00033424,2]
[310138839,1704382264449,-633.29,0.00033424,2]
[310138840,1704382264459,-500.0,0.00033424,2]
[310138841,1704382264468,-500.0,0.00033424,2]
[310138842,1704382264477,-754.99,0.00033424,2]
[310138843,1704382264486,-500.0,0.00033424,2]
[310138844,1704382264495,-500.0,0.00033424,2]
[310138845,1704382264504,-393.84592006,0.00033424,2]
[310138846,1704382264513,-1015.01,0.00033424,2]
[310138847,1704382264523,-516.74,0.00033424,2]
[310138848,1704382264531,-500.0,0.00033424,2]
[310138849,1704382264541,-562.47,0.00033424,2]
[310138850,1704382264551,-500.0,0.00033424,2]
[310138851,1704382264560,-4535.93,0.00033424,2]
[310138852,1704382264569,-214.70699463,0.00033424,2]
[310138853,1704382264579,-500.0,0.00033424,2]
[310138854,1704382264587,-533.13708568,0.00033424,2]
[310138855,1704382264597,-762.88,0.00033424,2]
[310138856,1704382264609,-500.0,0.00033424,2]
[310138857,1704382264618,-539.86,0.00033424,2]
[310138858,1704382264628,-500.0,0.00033424,2]
[310138859,1704382264638,-519.67,0.00033424,2]
[310138860,1704382264647,-724.5,0.00033424,2]
[310138861,1704382264657,-1690.95,0.00033424,2]
[310138862,1704382264668,-631.03,0.00033424,2]
[310138863,1704382264678,-618.43,0.00033424,2]
[310138864,1704382264687,-500.0,0.00033424,2]
[310138865,1704382264697,-500.0,0.00033424,2]
[310138866,1704382264706,-500.0,0.00033424,2]
[310138867,1704382264716,-830.76,0.00033424,2]
[310138868,1704382264725,-620.12,0.00033424,2]
[310138869,1704382264734,-217.07231003,0.00033424,2]
[310138870,1704382264744,-500.0,0.00033424,2]
[310138871,1704382264753,-1847.57,0.00033424,2]
[310138872,1704382264763,-1480.66,0.00033424,2]
[310138873,1704382264772,-874.34,0.00033424,2]
[310138874,1704382264782,-500.0,0.00033424,2]
[310138875,1704382264792,-732.38,0.00033424,2]
[310138876,1704382264801,-1503.08,0.00033424,2]
[310138877,1704382264810,-500.0,0.00033424,2]
[310138878,1704382264819,-500.0,0.00033424,2]
[310138879,1704382264829,-3879.84,0.00033424,2]
[310138880,1704382264839,-500.0,0.00033424,2]
[310138881,1704382264849,-500.0,0.00033424,2]
[310138882,1704382264858,-885.0,0.00033424,2]
[310138883,1704382264871,-555.56,0.00033424,2]
[310138884,1704382264881,-500.0,0.00033424,2]
[310138885,1704382264890,-585.2,0.00033424,2]
[310138886,1704382264900,-1630.34,0.00033424,2]
[310138887,1704382264909,-500.0,0.00033424,2]
[310138888,1704382264920,-500.0,0.00033424,2]
[310138889,1704382264930,-520.84,0.00033424,2]
[310138890,1704382264939,-1323.63,0.00033424,2]
[310138891,1704382264949,-152.8959136,0.00033424,2]
[310138892,1704382264958,-500.0,0.00033424,2]
[310138893,1704382264967,-1210.22,0.00033424,2]
[310138894,1704382264976,-552.26610803,0.00033424,2]
[310138895,1704382264986,-1388.49,0.00033424,2]
[310138896,1704382264995,-500.0,0.00033424,2]
[310138897,1704382265005,-500.0,0.00033424,2]
[310138898,1704382265014,-606.59,0.00033424,2]
[310138899,1704382265024,-860.24,0.00033424,2]
[310138900,1704382265033,-839.12,0.00033424,2]
[310138901,1704382265043,-1370.12,0.00033424,2]
[310138902,1704382265052,-249.25534119,0.00033424,2]
[310138903,1704382265062,-500.0,0.00033424,2]
[310138904,1704382265072,-228.55660888,0.00033424,2]
[310138905,1704382265081,-611.85,0.00033424,2]
[310138906,1704382265091,-500.0,0.00033424,2]
[310138907,1704382265101,-241.47738236,0.00033424,2]
[310138908,1704382265111,-500.0,0.00033424,2]
[310138909,1704382265121,-500.0,0.00033424,2]
[310138910,1704382265130,-500.0,0.00033424,2]